bitfinex/quotes_BTCUSD_20240712
["timestamp","ask_amount","ask_price","bid_price","bid_amount"]
[1720787573223,0.42214878,57411.0,57403.0,0.174203]
[1720787573224,0.47335097,57409.0,57403.0,0.174203]
[1720787573434,0.25520919,57408.0,57403.0,0.174206]
[1720787573647,0.348371,57411.0,57404.0,0.174202]
[1720787573648,0.2012823,57407.0,57404.0,0.174202]
[1720787573903,0.62214878,57411.0,57404.0,0.174202]
[1720787573904,0.2012821,57406.0,57404.0,0.174202]
[1720787574125,0.174204,57404.0,57401.0,0.1842]
[1720787574339,0.1,57414.0,57402.0,0.174209]
[1720787574340,0.08101719,57403.0,57402.0,0.174209]
[1720787574785,0.08171792,57404.0,57401.0,0.174211]
[1720787575003,0.34839,57407.0,57401.0,0.174211]
[1720787575004,0.08171792,57403.0,57402.0,0.174209]
[1720787575220,0.08171792,57406.0,57402.0,0.174209]
[1720787575446,0.08171792,57405.0,57402.0,0.174208]
[1720787575661,0.08171792,57404.0,57402.0,0.174208]
[1720787575890,0.174192,57408.0,57403.0,0.174206]
[1720787576124,0.45635793,57407.0,57402.0,0.174209]
[1720787576378,0.174202,57405.0,57403.0,0.023]
[1720787576548,0.08216193,57404.0,57403.0,0.174206]
[1720787576757,0.348391,57407.0,57402.0,0.023]
[1720787576969,0.522619,57403.0,57402.0,0.023]
[1720787577207,0.522619,57403.0,57398.0,0.023]
[1720787577208,0.174219,57399.0,57398.0,0.023]
[1720787577450,4.146e-05,57402.0,57401.0,0.522637]
[1720787577660,4.146e-05,57402.0,57401.0,0.894062]
[1720787578113,4.146e-05,57402.0,57401.0,1.426687]
[1720787578532,4.146e-05,57402.0,57401.0,1.775112]
[1720787578743,4.146e-05,57402.0,57401.0,1.426687]
[1720787579006,0.08282976,57405.0,57401.0,0.023]
[1720787579233,0.27377778,57411.0,57401.0,0.023]
[1720787579234,0.174193,57408.0,57402.0,0.174209]
[1720787579454,0.348375,57410.0,57403.0,0.20068841]
[1720787579455,0.08284105,57407.0,57403.0,0.20068841]
[1720787579656,0.08284105,57406.0,57403.0,0.02648341]
[1720787579874,0.62214378,57411.0,57403.0,0.023]
[1720787579875,0.25704305,57405.0,57403.0,0.023]
[1720787580104,0.08284105,57404.0,57401.0,0.02648359]
[1720787580365,0.1,57412.0,57401.0,0.02648359]
[1720787580366,0.44794878,57415.0,57410.0,0.174184]
[1720787580579,0.174196,57407.0,57402.0,0.174209]
[1720787580823,0.26,57404.0,57401.0,0.023]
[1720787581041,0.08274451,57403.0,57401.0,0.023]
[1720787581248,0.08274451,57403.0,57395.0,0.348458]
[1720787581249,0.08274451,57402.0,57398.0,0.371441]
[1720787581679,0.08274451,57401.0,57400.0,0.174216]
[1720787581904,0.348323,57418.0,57404.0,0.348406]
[1720787581905,0.34833,57417.0,57404.0,0.348406]
[1720787582128,0.05179484,57425.0,57400.0,0.29579779]
[1720787582129,0.0808,57423.0,57412.0,0.26931435]
[1720787582364,0.1,57427.0,57421.0,0.522456]
[1720787582365,0.08214305,57422.0,57421.0,0.522456]
[1720787582582,0.1,57427.0,57421.0,0.522456]
[1720787582583,0.18218877,57426.0,57425.0,0.17414]
[1720787582795,0.08218913,57426.0,57425.0,0.52242]
[1720787583017,0.1,57428.0,57425.0,0.023]
[1720787583243,0.1,57428.0,57426.0,0.174137]
[1720787583244,0.08218489,57427.0,57426.0,0.174137]
[1720787583463,0.08218489,57427.0,57426.0,0.545411]
[1720787583671,0.00083,57431.0,57426.0,0.545411]
[1720787583672,0.08244128,57430.0,57426.0,0.371274]
[1720787583910,0.08244128,57430.0,57426.0,0.023]
[1720787584165,0.00083,57431.0,57427.0,0.023]
[1720787584431,0.08200088,57430.0,57429.0,0.174128]
[1720787584628,0.08200088,57430.0,57429.0,0.874122]
[1720787584837,0.08200088,57430.0,57429.0,0.897122]
[1720787585051,0.08200088,57430.0,57429.0,1.245378]
[1720787585313,0.08200088,57430.0,57429.0,0.897122]
[1720787585522,0.08200088,57430.0,57429.0,1.245378]
[1720787585762,0.08200088,57430.0,57429.0,0.548866]
[1720787585965,0.08200088,57430.0,57429.0,0.89364]
[1720787586403,0.35577866,57430.0,57429.0,0.023]
[1720787586698,0.08200088,57430.0,57428.0,0.023]
[1720787587132,0.08200088,57430.0,57429.0,0.348256]
[1720787587340,0.08200088,57430.0,57422.0,0.1842]
[1720787587341,0.00306353,57429.0,57425.0,0.174138]
[1720787587574,0.08188246,57428.0,57426.0,0.023]
[1720787587825,0.08200331,57427.0,57426.0,0.023]
[1720787588040,0.08200331,57427.0,57426.0,0.870685]
[1720787588260,0.35578109,57427.0,57426.0,0.023]
[1720787588507,0.9978738,57427.0,57426.0,0.023]
[1720787588729,0.44793578,57419.0,57418.0,0.4664]
[1720787588954,0.44793578,57419.0,57408.0,0.4664]
[1720787588955,0.174184,57411.0,57408.0,0.4664]
[1720787589192,0.174184,57411.0,57385.0,1.77798611]
[1720787589193,0.28200331,57410.0,57404.0,0.51068611]
[1720787589408,0.20209566,57409.0,57405.0,0.174199]
[1720787589636,0.20209566,57409.0,57399.0,0.4664]
[1720787589855,0.08200331,57408.0,57400.0,0.348426]
[1720787590060,0.08200331,57408.0,57406.0,0.174197]
[1720787590308,0.08264318,57407.0,57406.0,0.174197]
[1720787590508,0.08264318,57407.0,57406.0,0.522592]
[1720787590745,0.08264318,57407.0,57406.0,0.870987]
[1720787591013,0.08264318,57407.0,57406.0,1.403582]
[1720787591498,0.08264318,57407.0,57406.0,0.893987]
[1720787591696,0.08264318,57407.0,57406.0,1.426582]
[1720787591910,0.08264318,57407.0,57406.0,1.242382]
[1720787592142,0.08264318,57407.0,57406.0,0.893987]
[1720787592628,0.20348434,57413.0,57412.0,0.348359]
[1720787592863,0.39423174,57413.0,57412.0,0.023]
[1720787593098,0.2034826,57413.0,57412.0,0.023]
[1720787593312,0.0805,57419.0,57411.0,0.34836]
[1720787593536,0.20348079,57418.0,57412.0,0.0264827]
[1720787593749,0.1,57424.0,57415.0,0.348337]
[1720787593985,0.27377778,57421.0,57416.0,0.371334]
[1720787594194,0.27377778,57421.0,57409.0,0.4664]
[1720787594195,0.174166,57417.0,57409.0,0.4664]
[1720787594667,0.27377778,57412.0,57410.0,0.023]
[1720787594673,0.2470131,57416.0,57409.0,0.4664]
[1720787594674,0.348358,57413.0,57409.0,0.4664]
[1720787594948,0.22270805,57410.0,57398.0,0.6506]
[1720787595179,0.14277698,57416.0,57402.0,0.174207]
[1720787595180,0.174194,57407.0,57402.0,0.174207]
[1720787595411,0.2470131,57406.0,57402.0,0.174207]
[1720787595629,0.22270805,57404.0,57398.0,0.4664]
[1720787595854,0.2470131,57403.0,57398.0,0.5264]
[1720787595995,0.20423612,57402.0,57398.0,0.4664]
[1720787596259,0.348409,57404.0,57392.0,0.7846]
[1720787596260,0.22270805,57403.0,57392.0,0.06]
[1720787596477,0.1,57404.0,57390.0,0.4664]
[1720787596478,0.22270805,57400.0,57390.0,0.4664]
[1720787596680,0.24782513,57402.0,57390.0,0.4664]
[1720787596681,0.22270805,57396.0,57390.0,0.4664]
[1720787596881,0.24782513,57395.0,57394.0,0.174234]
[1720787597414,0.44782513,57395.0,57383.0,0.14511435]
[1720787597608,0.44782513,57395.0,57385.0,0.408521]
[1720787597609,0.22270805,57393.0,57385.0,0.408521]
[1720787597831,0.22270805,57388.0,57378.0,0.06]
[1720787598020,0.06,57402.0,57375.0,0.009075]
[1720787598021,0.24785655,57387.0,57375.0,0.009075]
[1720787598233,0.24786374,57386.0,57385.0,0.174261]
[1720787598491,0.20497339,57386.0,57385.0,0.522784]
[1720787598727,0.348525,57385.0,57377.0,0.7846]
[1720787598942,0.24790143,57384.0,57378.0,0.348561]
[1720787599126,0.1,57388.0,57378.0,0.348561]
[1720787599127,0.24790143,57383.0,57380.0,0.174275]
[1720787599353,0.22270805,57382.0,57376.0,0.348576]
[1720787599651,0.448509,57388.0,57379.0,0.06]
[1720787599652,0.1,57388.0,57379.0,0.06]
[1720787599797,0.20510248,57381.0,57375.0,0.009075]
[1720787600027,0.1,57388.0,57378.0,0.1842]
[1720787600028,0.20510891,57380.0,57378.0,0.1842]
[1720787600244,0.32270805,57388.0,57378.0,0.1842]
[1720787600245,0.348517,57386.0,57380.0,0.174276]
[1720787600494,0.24802082,57385.0,57384.0,0.582793]
[1720787600725,0.083848,57385.0,57384.0,1.078522]
[1720787600950,0.20536157,57391.0,57387.0,0.348506]
[1720787601181,0.08398021,57390.0,57389.0,0.66786135]
[1720787601435,0.2,57404.0,57394.0,0.06]
[1720787601436,0.08407843,57397.0,57394.0,0.06]
[1720787601662,0.37111105,57405.0,57394.0,0.06]
[1720787601663,0.20554204,57396.0,57395.0,0.1777151]
[1720787601909,0.20554204,57397.0,57395.0,0.197231]
[1720787602172,0.32270805,57398.0,57389.0,0.348498]
[1720787602173,0.22270805,57392.0,57389.0,0.348498]
[1720787602454,0.20555412,57391.0,57390.0,0.023]
[1720787602689,0.20555412,57391.0,57385.0,0.4664]
[1720787602928,0.20555412,57391.0,57390.0,0.522738]
[1720787603164,0.20574426,57395.0,57390.0,0.023]
[1720787603409,0.20573929,57394.0,57393.0,0.522711]
[1720787603651,0.22270805,57396.0,57394.0,0.174233]
[1720787603904,0.20482616,57395.0,57394.0,0.348466]
[1720787604149,0.20482616,57395.0,57394.0,0.174234]
[1720787604379,0.20482616,57395.0,57394.0,0.89417]
[1720787604610,0.1,57404.0,57395.0,0.348457]
[1720787604843,0.47102979,57402.0,57400.0,0.174213]
[1720787605104,0.24832174,57401.0,57400.0,0.174213]
[1720787605336,0.22270805,57400.0,57394.0,0.023]
[1720787605557,0.22270805,57397.0,57394.0,0.174232]
[1720787605792,0.30674975,57396.0,57395.0,0.197231]
[1720787606056,0.42803954,57396.0,57395.0,0.197231]
[1720787606291,0.42803954,57396.0,57385.0,0.4664]
[1720787606292,0.22270805,57392.0,57385.0,0.4664]
[1720787606541,0.0840417,57391.0,57389.0,0.174249]
[1720787606781,0.30674975,57390.0,57385.0,0.4664]
[1720787607030,0.348471,57394.0,57385.0,0.4664]
[1720787607031,0.24817254,57389.0,57385.0,0.4664]
[1720787607274,0.0840417,57388.0,57387.0,0.871275]
[1720787607534,0.0840417,57388.0,57386.0,0.43362835]
[1720787607535,0.08339268,57388.0,57386.0,0.43362835]
[1720787607764,0.22270805,57390.0,57386.0,0.43362835]
[1720787607765,0.22270805,57390.0,57387.0,0.174255]
[1720787607995,0.0833927,57389.0,57388.0,0.17773656]
[1720787608240,0.22270805,57392.0,57390.0,0.174246]
[1720787608504,0.22270805,57392.0,57388.0,0.023]
[1720787608736,0.08330607,57391.0,57389.0,0.0034845]
[1720787608994,0.08330607,57391.0,57388.0,0.371503]
[1720787608995,0.1,57395.0,57390.0,0.023]
[1720787609246,0.1,57395.0,57387.0,0.348507]
[1720787609247,0.22270805,57392.0,57387.0,0.348507]
[1720787609480,0.08330148,57391.0,57389.0,0.174248]
[1720787609978,0.08330148,57391.0,57388.0,0.371501]
[1720787609979,0.22270805,57390.0,57388.0,0.023]
[1720787610210,0.348471,57394.0,57390.0,0.174244]
[1720787610211,0.39694205,57394.0,57390.0,0.174244]
[1720787610450,0.39694205,57394.0,57387.0,0.023]
[1720787610451,0.2,57388.0,57387.0,0.023]
[1720787610677,0.08333014,57388.0,57387.0,0.545765]
[1720787610914,0.22270805,57390.0,57387.0,0.37151]
[1720787611186,0.448462,57395.0,57389.0,0.08511435]
[1720787611187,0.1,57395.0,57389.0,0.08511435]
[1720787611423,0.10393637,57405.0,57393.0,0.174237]
[1720787611424,0.08330589,57394.0,57393.0,0.174237]
[1720787611671,0.3224,57406.0,57400.0,0.522648]
[1720787611672,0.08330589,57401.0,57400.0,0.522648]
[1720787611929,0.08330589,57401.0,57395.0,0.06]
[1720787611930,0.2482,57406.0,57405.0,0.522601]
[1720787611931,0.1831,57406.0,57405.0,0.522601]
[1720787612159,0.00083,57410.0,57409.0,0.870942]
[1720787612643,0.00083,57410.0,57401.0,0.023]
[1720787612644,0.22270805,57407.0,57401.0,0.023]
[1720787612645,0.2,57402.0,57399.0,0.348437]
[1720787612891,0.34839,57407.0,57402.0,0.174208]
[1720787612892,0.39690705,57406.0,57402.0,0.174208]
[1720787613121,0.22270805,57398.0,57397.0,0.174223]
[1720787613370,0.30647262,57398.0,57397.0,0.197223]
[1720787613605,0.42764416,57398.0,57397.0,0.197223]
[1720787613857,0.42764416,57398.0,57397.0,0.023]
[1720787614334,0.20493611,57398.0,57396.0,0.174226]
[1720787614554,0.2,57395.0,57393.0,0.174237]
[1720787614787,0.2,57394.0,57393.0,0.174237]
[1720787615076,0.08421171,57394.0,57393.0,0.545711]
[1720787615307,0.2,57399.0,57393.0,0.023]
[1720787615308,0.25843259,57398.0,57393.0,0.023]
[1720787615523,0.2,57395.0,57394.0,0.174233]
[1720787615750,0.20565524,57395.0,57393.0,0.348471]
[1720787616012,0.32270805,57399.0,57397.0,0.174225]
[1720787616241,0.32270805,57399.0,57393.0,0.522711]
[1720787616242,0.2,57395.0,57393.0,0.522711]
[1720787616468,0.20565159,57394.0,57393.0,0.522711]
[1720787616713,0.40565159,57394.0,57393.0,0.545711]
[1720787616935,0.174238,57393.0,57388.0,0.17425]
[1720787617156,0.174238,57393.0,57380.0,0.06]
[1720787617157,0.22270805,57390.0,57380.0,0.06]
[1720787617380,0.2,57388.0,57386.0,0.174257]
[1720787617600,0.2,57386.0,57377.0,0.14511435]
[1720787617828,0.20590063,57385.0,57384.0,0.348529]
[1720787618071,0.20590063,57385.0,57383.0,0.174267]
[1720787618072,0.40590063,57385.0,57383.0,0.174267]
[1720787618298,0.05206213,57390.0,57386.0,0.174256]
[1720787618299,0.05206308,57390.0,57386.0,0.174256]
[1720787618531,0.474243,57391.0,57376.0,0.55151435]
[1720787618532,0.2496974,57389.0,57388.0,0.522756]
[1720787618755,0.2496974,57389.0,57388.0,0.87126]
[1720787618756,0.20680436,57389.0,57388.0,0.87126]
[1720787619031,0.20801573,57390.0,57389.0,0.348498]
[1720787619243,0.20801573,57390.0,57389.0,0.545747]
[1720787619244,0.08534753,57390.0,57389.0,0.545747]
[1720787619462,0.08534753,57390.0,57383.0,0.348529]
[1720787619463,0.20802529,57390.0,57383.0,0.348529]
[1720787619671,0.20802529,57389.0,57388.0,0.174252]
[1720787619886,0.20802529,57389.0,57384.0,0.02648467]
[1720787619887,0.22270805,57388.0,57384.0,0.023]
[1720787620159,0.20802529,57387.0,57386.0,0.17774271]
[1720787620341,0.1,57392.0,57386.0,0.023]
[1720787620342,0.20871112,57391.0,57386.0,0.023]
[1720787620584,0.1,57392.0,57391.0,0.174243]
[1720787620779,0.1,57392.0,57391.0,0.522729]
[1720787621038,0.05205085,57395.0,57393.0,0.348474]
[1720787621293,0.3,57396.0,57395.0,0.174231]
[1720787621494,0.3,57396.0,57391.0,0.023]
[1720787621495,0.22270805,57393.0,57391.0,0.023]
[1720787621725,0.22270805,57393.0,57390.0,0.174244]
[1720787621726,0.22270805,57391.0,57388.0,0.17425]
[1720787621965,0.05205146,57394.0,57393.0,0.174237]
[1720787622196,0.05205146,57394.0,57387.0,0.083]
[1720787622197,0.05205146,57395.0,57394.0,0.522702]
[1720787622446,0.12781964,57395.0,57394.0,0.89417]
[1720787622659,0.25010826,57395.0,57394.0,0.89417]
[1720787623099,0.25010826,57395.0,57394.0,1.242638]
[1720787624000,0.24979495,57395.0,57394.0,1.302638]
[1720787624217,0.24979495,57395.0,57394.0,1.591106]
[1720787624439,0.24979495,57395.0,57394.0,1.651106]
[1720787625123,0.24979495,57395.0,57394.0,1.591106]
[1720787625377,0.24979495,57395.0,57394.0,1.242638]
[1720787626303,0.24979495,57395.0,57394.0,0.89417]
[1720787626735,0.24979495,57395.0,57391.0,0.408482]
[1720787626736,0.472503,57395.0,57392.0,0.348479]
[1720787626954,0.24979495,57394.0,57392.0,0.34848]
[1720787627184,0.05204825,57397.0,57396.0,0.522684]
[1720787627398,0.12840711,57397.0,57396.0,0.348456]
[1720787627623,0.12840711,57397.0,57396.0,0.522684]
[1720787627624,0.35111405,57397.0,57396.0,0.522684]
[1720787627849,0.52601507,57397.0,57396.0,0.522684]
[1720787628060,0.52601507,57397.0,57396.0,0.545684]
[1720787628770,0.47396883,57397.0,57396.0,0.023]
[1720787629019,0.22270805,57392.0,57391.0,0.174243]
[1720787629245,0.25126078,57392.0,57391.0,0.522729]
[1720787629694,0.25126078,57392.0,57391.0,0.174243]
[1720787629933,0.25126078,57392.0,57391.0,0.871215]
[1720787630164,0.25137761,57392.0,57391.0,1.219701]
[1720787630399,0.25167125,57392.0,57391.0,1.242701]
[1720787630618,0.25167125,57392.0,57391.0,0.894215]
[1720787630836,0.52644949,57392.0,57390.0,0.174245]
[1720787631089,0.25167125,57391.0,57385.0,0.06]
[1720787631309,0.10419326,57391.0,57390.0,0.522738]
[1720787631551,0.13017549,57392.0,57391.0,0.174243]
[1720787631793,0.25914004,57392.0,57391.0,0.174243]
[1720787632003,0.60517266,57392.0,57391.0,0.174243]
[1720787632212,0.47499717,57392.0,57391.0,0.174243]
[1720787632672,0.22270805,57391.0,57390.0,0.522737]
[1720787632896,0.25228912,57391.0,57390.0,0.522737]
[1720787633148,0.47499717,57391.0,57390.0,0.522737]
[1720787633613,0.47498866,57391.0,57390.0,0.174245]
[1720787633846,0.22270805,57390.0,57389.0,0.174248]
[1720787634076,0.25228061,57391.0,57390.0,0.174246]
[1720787634077,0.2,57391.0,57390.0,0.174246]
[1720787634289,0.22270805,57390.0,57389.0,0.197248]
[1720787634513,0.15642608,57392.0,57390.0,0.174246]
[1720787634736,0.22270805,57390.0,57389.0,0.023]
[1720787634948,0.47555466,57390.0,57389.0,0.023]
[1720787635390,0.47555466,57390.0,57389.0,0.197249]
[1720787635391,0.25284661,57390.0,57389.0,0.197249]
[1720787636068,0.40927269,57390.0,57389.0,0.197249]
[1720787636330,0.25284661,57390.0,57389.0,0.197249]
[1720787636574,0.25284661,57390.0,57389.0,0.023]
[1720787636575,0.47555466,57390.0,57389.0,0.023]
[1720787636823,0.6321289,57390.0,57389.0,0.023]
[1720787637048,0.22270805,57387.0,57383.0,0.174266]
[1720787637278,0.25246033,57386.0,57382.0,0.08511435]
[1720787637503,0.348504,57389.0,57386.0,0.06]
[1720787637504,0.13053352,57389.0,57386.0,0.06]
[1720787637728,0.1462,57406.0,57398.0,0.522666]
[1720787637729,0.15663215,57399.0,57398.0,0.522666]
[1720787637988,0.15663215,57399.0,57397.0,0.348447]
[1720787637989,0.15663215,57403.0,57402.0,0.522628]
[1720787638219,0.46890805,57406.0,57403.0,0.871032]
[1720787638220,0.15663215,57404.0,57403.0,0.871032]
[1720787638458,0.10613449,57405.0,57404.0,0.58261]
[1720787638459,0.15663215,57405.0,57404.0,0.58261]
[1720787638680,0.15663215,57405.0,57404.0,0.54561]
[1720787638681,0.21698827,57405.0,57404.0,0.54561]
[1720787638958,0.21698827,57405.0,57404.0,0.954017]
[1720787639184,0.21698827,57405.0,57404.0,1.302424]
[1720787639417,0.04287809,57405.0,57404.0,1.242424]
[1720787639648,0.21816187,57405.0,57404.0,1.242424]
[1720787639871,0.21816096,57405.0,57404.0,1.302424]
[1720787640262,0.21816096,57405.0,57404.0,1.242424]
[1720787640495,0.21816096,57405.0,57404.0,1.650831]
[1720787640740,0.21816096,57405.0,57404.0,1.68812295]
[1720787641004,0.21816096,57405.0,57404.0,2.22072995]
[1720787641137,0.00083,57410.0,57409.0,1.84918795]
[1720787641313,0.00083,57410.0,57409.0,2.2751023]
[1720787641314,0.12198691,57410.0,57409.0,2.2751023]
[1720787641522,0.06903441,57410.0,57409.0,2.2751023]
[1720787641770,0.06903441,57410.0,57409.0,0.893942]
[1720787641963,0.14731677,57410.0,57409.0,0.893942]
[1720787642185,0.57134802,57410.0,57409.0,0.893942]
[1720787642386,0.57134802,57410.0,57388.0,0.7846]
[1720787642387,0.02270805,57401.0,57394.0,0.467313]
[1720787642595,0.02270805,57401.0,57396.0,0.348456]
[1720787642596,0.05218147,57397.0,57396.0,0.348456]
[1720787642819,0.22270805,57395.0,57394.0,0.000913]
[1720787643026,2.09455175,57395.0,57394.0,0.000913]
[1720787643234,1.49140043,57395.0,57394.0,0.000913]
[1720787643621,1.14293843,57395.0,57394.0,0.000913]
[1720787643833,1.31909916,57395.0,57394.0,0.000913]
[1720787644045,0.62024543,57395.0,57394.0,0.175147]
[1720787644503,0.39753738,57395.0,57394.0,0.523615]
[1720787644710,0.37391226,57395.0,57394.0,0.872083]
[1720787644918,0.21899577,57395.0,57394.0,1.280551]
[1720787645573,0.32336883,57395.0,57394.0,1.652019]
[1720787645816,0.13047207,57398.0,57397.0,0.234225]
[1720787646017,0.04292096,57398.0,57397.0,0.954125]
[1720787646129,0.13047563,57398.0,57397.0,0.954125]
[1720787646340,0.17339659,57398.0,57397.0,1.302575]
[1720787646560,0.04292096,57398.0,57397.0,1.242575]
[1720787646780,0.04292096,57398.0,57397.0,0.894125]
[1720787646781,0.26562901,57398.0,57397.0,0.894125]
[1720787646992,0.26562901,57398.0,57397.0,0.522675]
[1720787647198,0.19949008,57398.0,57397.0,0.522675]
[1720787647420,0.42219813,57398.0,57397.0,0.522675]
[1720787647862,0.42223163,57398.0,57397.0,0.522675]
[1720787648083,0.22270805,57395.0,57394.0,0.000913]
[1720787648309,0.42223165,57395.0,57394.0,0.175146]
[1720787648524,0.26562901,57395.0,57394.0,0.175146]
[1720787648771,0.42224717,57395.0,57394.0,0.175146]
[1720787648985,0.42224717,57395.0,57394.0,0.000913]
[1720787649199,0.78832201,57395.0,57394.0,0.000913]
[1720787649438,1.31296199,57395.0,57394.0,0.000913]
[1720787649672,1.70834601,57395.0,57394.0,0.000913]
[1720787649904,1.78364601,57395.0,57394.0,0.000913]
[1720787650128,1.37518401,57395.0,57394.0,0.000913]
[1720787650592,1.43518401,57395.0,57394.0,0.000913]
[1720787650814,1.37518401,57395.0,57394.0,0.000913]
[1720787651712,1.78364601,57395.0,57394.0,0.000913]
[1720787653497,1.37518401,57395.0,57394.0,0.000913]
[1720787653720,1.46470362,57395.0,57394.0,0.000913]
[1720787654172,1.37518401,57395.0,57394.0,0.000913]
[1720787654377,1.465173,57395.0,57394.0,0.000913]
[1720787654650,1.43518401,57395.0,57394.0,0.000913]
[1720787654872,1.52517301,57395.0,57394.0,0.000913]
[1720787655097,1.46517301,57395.0,57394.0,0.000913]
[1720787655582,1.5161295,57395.0,57394.0,0.000913]
[1720787656467,1.1676675,57395.0,57394.0,0.000913]
[1720787656697,0.8192055,57395.0,57394.0,0.000913]
[1720787656924,0.6449745,57395.0,57394.0,0.000913]
[1720787657200,0.44092901,57395.0,57394.0,0.000913]
[1720787657446,0.75559399,57395.0,57394.0,0.000913]
[1720787657688,0.58136299,57395.0,57394.0,0.000913]
[1720787658124,0.75559399,57395.0,57394.0,0.000913]
[1720787658578,0.58136299,57395.0,57394.0,0.000913]
[1720787658797,0.50606299,57395.0,57394.0,0.000913]
[1720787659051,0.68216397,57395.0,57394.0,0.000913]
[1720787659492,0.68218684,57395.0,57394.0,0.000913]
[1720787659705,0.50606299,57395.0,57394.0,0.000913]
[1720787659923,0.50606299,57395.0,57394.0,0.523615]
[1720787660145,0.50606299,57395.0,57394.0,0.175147]
[1720787660367,0.50606299,57395.0,57394.0,0.000913]
[1720787660603,0.50627789,57395.0,57394.0,0.175147]
[1720787661086,0.18356984,57395.0,57394.0,0.523615]
[1720787661320,0.18356984,57395.0,57394.0,0.872083]
[1720787661755,0.18356984,57395.0,57394.0,1.280551]
[1720787661977,0.18356984,57395.0,57394.0,1.303551]
[1720787662869,0.31400613,57395.0,57394.0,1.303551]
[1720787663087,0.31400613,57395.0,57394.0,1.68931095]
[1720787663088,0.19810341,57395.0,57394.0,1.68931095]
[1720787663313,0.0508378,57395.0,57394.0,1.68931095]
[1720787663750,0.13043629,57400.0,57394.0,1.68931095]
[1720787663751,0.15650154,57405.0,57404.0,0.06]
[1720787663991,0.03848597,57405.0,57404.0,1.279424]
[1720787664465,0.18209931,57405.0,57404.0,1.302424]
[1720787664682,0.09084745,57405.0,57404.0,1.302424]
[1720787664909,0.22125041,57405.0,57404.0,1.302424]
[1720787665136,0.15668231,57405.0,57404.0,1.302424]
[1720787666072,0.15668231,57405.0,57404.0,1.33971595]
[1720787666073,0.13058516,57405.0,57404.0,1.33971595]
[1720787666300,0.10450166,57405.0,57404.0,1.68812295]
[1720787666519,0.05236148,57405.0,57404.0,1.68812295]
[1720787666755,0.10083,57410.0,57409.0,1.279319]
[1720787666972,0.1922194,57410.0,57409.0,1.302319]
[1720787667190,0.28401696,57410.0,57409.0,1.302319]
[1720787667410,0.1922194,57410.0,57409.0,1.302319]
[1720787667627,0.2580257,57410.0,57409.0,1.302319]
[1720787667858,0.15377033,57410.0,57409.0,1.302319]
[1720787668311,0.13194588,57410.0,57409.0,1.302319]
[1720787668538,0.15377033,57410.0,57409.0,0.893942]
[1720787668769,0.15377033,57410.0,57409.0,0.545565]
[1720787668770,0.28350753,57410.0,57409.0,0.545565]
[1720787669009,0.50621558,57410.0,57409.0,0.870942]
[1720787669467,0.28350753,57410.0,57409.0,0.870942]
[1720787669980,0.28138904,57410.0,57409.0,0.870942]
[1720787670190,0.41167173,57410.0,57409.0,0.870942]
[1720787670651,0.28138904,57410.0,57409.0,0.870942]
[1720787670867,0.50409709,57410.0,57409.0,0.870942]
[1720787671977,0.22270805,57405.0,57404.0,0.174203]
[1720787672192,0.40326709,57405.0,57404.0,0.174203]
[1720787672439,0.40326709,57405.0,57394.0,0.815778]
[1720787672440,0.22270805,57398.0,57394.0,0.467313]
[1720787672661,0.22270805,57398.0,57394.0,0.000913]
[1720787672662,0.35298673,57395.0,57394.0,0.000913]
[1720787672918,0.43543503,57395.0,57394.0,0.000913]
[1720787673158,1.94370733,57395.0,57394.0,0.000913]
[1720787673373,1.78736362,57395.0,57394.0,0.000913]
[1720787673597,1.96325029,57395.0,57394.0,0.000913]
[1720787674031,1.78736362,57395.0,57394.0,0.000913]
[1720787674684,1.84736362,57395.0,57394.0,0.000913]
[1720787674899,1.78736362,57395.0,57394.0,0.000913]
[1720787675327,1.84736362,57395.0,57394.0,0.000913]
[1720787675781,1.09043962,57395.0,57394.0,0.000913]
[1720787676000,0.94759703,57395.0,57394.0,0.000913]
[1720787676449,0.74110181,57395.0,57394.0,0.000913]
[1720787676672,0.74185251,57395.0,57394.0,0.000913]
[1720787676899,1.09031451,57395.0,57394.0,0.000913]
[1720787678121,0.74185251,57395.0,57394.0,0.000913]
[1720787678340,0.67815251,57395.0,57394.0,0.000913]
[1720787678807,0.50392151,57395.0,57394.0,0.000913]
[1720787679034,0.28197229,57395.0,57394.0,0.000913]
[1720787679253,0.36120403,57395.0,57394.0,0.000913]
[1720787679477,0.50467799,57395.0,57394.0,0.000913]
[1720787680625,0.28196994,57395.0,57394.0,0.000913]
[1720787680852,0.28196994,57395.0,57394.0,0.175147]
[1720787681082,0.18196994,57395.0,57394.0,0.523615]
[1720787681308,0.18127312,57395.0,57394.0,0.932083]
[1720787681534,0.18127312,57395.0,57394.0,1.303551]
[1720787681757,0.10402585,57395.0,57394.0,1.303551]
[1720787681978,0.09050703,57395.0,57394.0,1.34084295]
[1720787682199,0.05192869,57395.0,57394.0,1.34084295]
[1720787682429,0.05192869,57395.0,57394.0,2.22197895]
[1720787682696,0.1,57409.0,57408.0,0.174191]
[1720787682919,0.1,57406.0,57405.0,0.1742]
[1720787683149,0.1,57409.0,57407.0,0.696778]
[1720787683371,0.18175787,57408.0,57407.0,0.870972]
[1720787683592,0.28175787,57408.0,57407.0,0.893972]
[1720787684039,0.41197848,57408.0,57407.0,0.893972]
[1720787684928,0.28175787,57408.0,57407.0,0.545583]
[1720787685163,0.3,57406.0,57400.0,0.06]
[1720787685403,0.2417,57400.0,57394.0,0.000913]
[1720787685636,0.9305154,57395.0,57394.0,0.000913]
[1720787685887,1.31758248,57395.0,57394.0,0.000913]
[1720787686126,1.66604448,57395.0,57394.0,0.000913]
[1720787686331,1.66604448,57395.0,57394.0,0.00042655]
[1720787686332,1.72546329,57395.0,57394.0,0.00042655]
[1720787687265,1.47492403,57395.0,57394.0,0.00042655]
[1720787687555,1.41492403,57395.0,57394.0,0.00042655]
[1720787688470,1.33039087,57395.0,57394.0,0.00042655]
[1720787688710,1.47564229,57395.0,57394.0,0.00042655]
[1720787688951,1.47564549,57395.0,57394.0,0.00042655]
[1720787690362,1.41564549,57395.0,57394.0,0.00042655]
[1720787691949,1.47564549,57395.0,57394.0,0.00042655]